bitfinex/quotes_SOLUSD_20241028
["timestamp","ask_amount","ask_price","bid_price","bid_amount"]
[1730098105754,4.2687908,174.5,174.45,9.13542421]
[1730098105950,6.0834,174.51,174.45,9.13542421]
[1730098106270,15.21882421,174.51,174.45,9.13542421]
[1730098106574,20.94912421,174.51,174.45,9.13542421]
[1730098107174,11.8137,174.51,174.45,9.13542421]
[1730098108154,20.94912421,174.51,174.45,9.13542421]
[1730098108468,26.02569891,174.51,174.45,14.21199891]
[1730098109978,14.21199891,174.48,174.43,20.0647]
[1730098110162,14.21199891,174.49,174.43,34.27669891]
[1730098112173,19.94289891,174.5,174.44,14.21199891]
[1730098112772,14.21199891,174.49,174.43,28.54379891]
[1730098114381,14.21199891,174.49,174.43,34.27669891]
[1730098115569,14.21199891,174.47,174.42,5.7332]
[1730098115775,14.21199891,174.45,174.4,20.0686]
[1730098115998,14.21199891,174.46,174.4,34.28059891]
[1730098116697,20.0,174.46,174.41,14.21199891]
[1730098117180,20.0,174.46,174.42,14.21199891]
[1730098118264,25.7321,174.46,174.42,14.21199891]
[1730098119192,20.0,174.46,174.42,14.21199891]
[1730098119371,20.0,174.47,174.42,19.94519891]
[1730098119570,19.94359891,174.48,174.42,19.94519891]
[1730098119784,20.0,174.47,174.42,19.94519891]
[1730098119970,20.0,174.47,174.42,28.54519891]
[1730098120185,34.21199891,174.47,174.42,28.54519891]
[1730098120569,39.94389891,174.47,174.42,28.54519891]
[1730098123162,20.0,174.47,174.42,34.27839891]
[1730098124687,14.21199891,174.45,174.39,14.3354]
[1730098124907,14.21199891,174.45,174.4,14.21199891]
[1730098125193,14.21199891,174.44,174.37,5.7349]
[1730098125373,14.21199891,174.43,174.38,14.21199891]
[1730098125889,29.85739891,174.45,174.39,14.21199891]
[1730098126093,20.0,174.44,174.39,14.21199891]
[1730098126793,14.21199891,174.43,174.35,21.7003]
[1730098126996,14.21199891,174.43,174.38,14.21199891]
[1730098127174,39.94479891,174.44,174.38,14.21199891]
[1730098128267,10.00298918,174.43,174.38,19.94639891]
[1730098128468,5.733,174.43,174.38,19.94639891]
[1730098130580,5.733,174.43,174.38,9.10382378]
[1730098131373,5.733,174.43,174.39,9.10382378]
[1730098134185,4.26932742,174.42,174.39,9.10382378]
[1730098134390,5.733,174.43,174.39,9.10382378]
[1730098134582,4.26900075,174.42,174.39,9.10382378]
[1730098134790,5.733,174.43,174.39,9.10382378]
[1730098134992,4.26846724,174.42,174.39,9.10382378]
[1730098135191,5.733,174.43,174.38,14.83822378]
[1730098135406,4.26893271,174.42,174.38,14.83822378]
[1730098135606,5.733,174.43,174.38,14.83822378]
[1730098135895,4.26880574,174.42,174.38,14.83822378]
[1730098136089,5.733,174.43,174.38,14.83822378]
[1730098136287,4.26898302,174.42,174.39,9.10382378]
[1730098136499,5.733,174.43,174.39,9.10382378]
[1730098136705,4.26921644,174.42,174.39,9.10382378]
[1730098136882,5.733,174.43,174.39,9.10382378]
[1730098137083,4.26922879,174.42,174.39,9.10382378]
[1730098137313,5.733,174.43,174.39,9.10382378]
[1730098137599,4.26990395,174.42,174.39,9.10382378]
[1730098137801,25.7327,174.44,174.39,9.10382378]
[1730098137980,4.26995037,174.43,174.39,9.10382378]
[1730098138174,4.26995037,174.42,174.39,9.10382378]
[1730098138386,25.7327,174.44,174.39,14.83772378]
[1730098138679,4.27065331,174.43,174.39,14.83772378]
[1730098138985,25.7327,174.44,174.39,14.83772378]
[1730098139294,4.27072422,174.43,174.39,14.83772378]
[1730098139488,4.27072422,174.42,174.39,14.83772378]
[1730098139686,25.7327,174.44,174.39,14.83772378]
[1730098139901,4.27144181,174.43,174.39,14.83772378]
[1730098140074,4.27144181,174.42,174.39,14.83772378]
[1730098140278,25.7327,174.44,174.39,14.83772378]
[1730098140478,4.27112183,174.43,174.39,5.7339]
[1730098140699,4.27112183,174.42,174.39,14.83772378]
[1730098140903,25.7327,174.44,174.39,14.83772378]
[1730098141097,4.27053839,174.43,174.39,14.83772378]
[1730098141302,4.27053839,174.42,174.39,14.83772378]
[1730098141486,25.7327,174.44,174.39,14.83772378]
[1730098141799,4.27129242,174.43,174.39,14.83772378]
[1730098141974,4.27129242,174.42,174.39,14.83772378]
[1730098142175,25.7327,174.44,174.39,14.83772378]
[1730098142400,4.27216246,174.43,174.39,14.83772378]
[1730098142678,4.27216246,174.42,174.39,14.83772378]
[1730098142874,4.27216246,174.41,174.4,9.10382378]
[1730098143097,4.27216246,174.43,174.4,9.10382378]
[1730098143405,4.27216246,174.42,174.4,9.10382378]
[1730098143608,4.27216246,174.41,174.4,9.10382378]
[1730098143800,4.27216246,174.43,174.4,9.10382378]
[1730098144110,4.27216246,174.42,174.4,9.10382378]
[1730098144308,4.27216246,174.41,174.4,9.10382378]
[1730098144603,5.7317,174.47,174.41,5.7336]
[1730098144826,4.27369002,174.46,174.45,9.10382378]
[1730098145180,4.27658168,174.46,174.45,9.10382378]
[1730098146904,4.27839987,174.46,174.45,9.10382378]
[1730098147587,4.27839987,174.46,174.43,9.10382378]
[1730098147786,4.27839987,174.45,174.43,9.10382378]
[1730098148087,4.27839987,174.44,174.43,9.10382378]
[1730098149093,4.27982208,174.44,174.43,9.10382378]
[1730098153004,19.11634586,174.44,174.36,20.0733]
[1730098153187,13.38364586,174.43,174.37,9.10382378]
[1730098153386,4.27982208,174.42,174.38,9.10382378]
[1730098153586,4.27982208,174.41,174.38,9.10382378]
[1730098153797,4.27982208,174.4,174.38,9.10382378]
[1730098153999,9.10382378,174.43,174.38,9.10382378]
[1730098154205,4.28089484,174.42,174.38,9.10382378]
[1730098154410,4.28089484,174.41,174.38,14.83822378]
[1730098154610,4.28089484,174.4,174.38,14.83822378]
[1730098154903,5.7329,174.43,174.38,14.83822378]
[1730098155105,4.28170028,174.42,174.38,14.83822378]
[1730098155298,4.28170028,174.41,174.38,14.83822378]
[1730098155499,4.28170028,174.4,174.38,14.83822378]
[1730098155708,5.7329,174.43,174.38,14.83822378]
[1730098155889,4.28177175,174.42,174.38,14.83822378]
[1730098156088,4.28177175,174.41,174.38,14.83822378]
[1730098156286,4.28179958,174.4,174.38,14.83822378]
[1730098156603,4.28179958,174.39,174.38,14.83822378]
[1730098156999,4.28179958,174.39,174.36,14.3381]
[1730098157000,4.28179958,174.39,174.37,5.7349]
[1730098157194,14.83702378,174.43,174.38,9.10382378]
[1730098157389,4.28120449,174.42,174.38,9.10382378]
[1730098157595,4.28120449,174.41,174.38,9.10382378]
[1730098157810,4.28120449,174.4,174.39,9.10382378]
[1730098158518,4.28120449,174.4,174.39,14.83802378]
[1730098163214,4.28120449,174.4,174.39,9.10382378]
[1730098164825,4.28120449,174.4,174.38,9.10382378]
[1730098165114,4.28120449,174.39,174.38,9.10382378]
[1730098165308,4.28120449,174.39,174.37,23.44112378]
[1730098165509,4.28120449,174.38,174.37,23.44112378]
[1730098165696,4.28120449,174.38,174.37,29.17602378]
[1730098167398,4.29214163,174.38,174.37,29.17602378]
[1730098168606,11.16103077,174.38,174.37,29.17602378]
[1730098170601,4.29270414,174.38,174.37,29.17602378]
[1730098174000,4.29270414,174.38,174.37,14.3373]
[1730098174214,4.29270414,174.38,174.37,23.44112378]
[1730098175512,4.29270414,174.38,174.37,29.17602378]
[1730098178903,4.29546266,174.38,174.37,29.17602378]
[1730098181528,4.29546266,174.38,174.33,42.40027168]
[1730098181529,19.13398644,174.38,174.33,5.98497656]
[1730098181704,4.29546266,174.37,174.32,9.10382378]
[1730098181906,14.83852378,174.38,174.32,9.10382378]
[1730098181907,4.29546266,174.36,174.32,9.10382378]
[1730098182122,4.29546266,174.35,174.33,9.10382378]
[1730098182339,4.29546266,174.34,174.33,9.10382378]
[1730098182629,4.29546266,174.34,174.32,9.10382378]
[1730098182923,4.29546266,174.33,174.32,9.10382378]
[1730098183305,4.29546266,174.33,174.32,14.84032378]
[1730098183505,4.29546266,174.33,174.32,9.10382378]
[1730098184423,4.29546266,174.33,174.31,9.10382378]
[1730098184629,15.2284,174.39,174.3,29.18322378]
[1730098184630,4.29546266,174.32,174.3,29.18322378]
[1730098184926,14.83942378,174.35,174.3,29.18322378]
[1730098185123,4.2924224,174.34,174.3,29.18322378]
[1730098185304,4.2924224,174.33,174.3,29.18322378]
[1730098185500,4.2924224,174.32,174.29,9.10382378]
[1730098185705,4.29099716,174.31,174.29,9.10382378]
[1730098185927,9.10382378,174.34,174.29,9.10382378]
[1730098186126,4.29109576,174.33,174.29,9.10382378]
[1730098186343,4.29125445,174.32,174.29,9.10382378]
[1730098187013,10.02785445,174.32,174.28,9.10382378]
[1730098187525,4.29078217,174.31,174.28,9.10382378]
[1730098189516,4.28862316,174.3,174.27,5.7381]
[1730098189713,4.29078217,174.31,174.29,9.10382378]
[1730098190018,4.29078217,174.31,174.3,9.10382378]
[1730098196340,4.29078217,174.31,174.29,9.10382378]
[1730098197220,4.29078217,174.31,174.3,9.10382378]
[1730098199542,5.7357,174.35,174.3,9.10382378]
[1730098199744,6.84775527,174.34,174.31,9.10382378]
[1730098200037,5.7357,174.35,174.31,9.10382378]
[1730098200224,12.58341922,174.34,174.31,9.10382378]
[1730098200427,6.84751922,174.33,174.3,9.10382378]
[1730098200633,5.7359,174.34,174.3,9.10382378]
[1730098200841,15.95116266,174.33,174.28,14.3447]
[1730098201027,6.84733888,174.32,174.28,14.3447]
[1730098201228,9.10382378,174.33,174.28,14.3447]
[1730098202138,5.7365,174.32,174.28,14.3447]
[1730098202318,5.7365,174.32,174.29,9.10382378]
[1730098202519,9.10382378,174.36,174.31,9.10382378]
[1730098202719,5.7352,174.36,174.31,9.10382378]
[1730098203029,14.83902378,174.36,174.3,9.10382378]
[1730098203223,9.10382378,174.35,174.3,9.10382378]
[1730098203745,5.7359,174.34,174.3,9.10382378]
[1730098204520,5.7359,174.34,174.31,9.10382378]
[1730098205725,29.10382378,174.37,174.31,9.10382378]
[1730098205920,5.7352,174.36,174.31,9.10382378]
[1730098206543,14.83902378,174.36,174.31,9.10382378]
[1730098208145,9.10382378,174.35,174.3,9.10382378]
[1730098208723,5.7352,174.36,174.3,9.10382378]
[1730098208948,9.10382378,174.35,174.3,9.10382378]
[1730098209937,5.7359,174.34,174.3,9.10382378]
[1730098211139,5.7359,174.34,174.29,5.7374]
[1730098211439,5.7359,174.34,174.28,14.3444]
[1730098211440,9.10382378,174.33,174.28,23.44822378]
[1730098212339,5.7364,174.33,174.28,29.18602378]
[1730098213249,14.84022378,174.33,174.28,23.44822378]
[1730098213453,14.84022378,174.33,174.28,14.3444]
[1730098214042,9.10382378,174.32,174.26,9.10382378]
[1730098214341,5.7369,174.31,174.26,14.84222378]
[1730098214548,14.84072378,174.31,174.25,23.45062378]
[1730098214745,9.10382378,174.3,174.25,14.3468]
[1730098215246,9.10382378,174.3,174.25,23.45062378]
[1730098215629,5.7375,174.29,174.25,23.45062378]
[1730098218733,5.7375,174.29,174.24,14.84272378]
[1730098218960,9.10382378,174.27,174.2,16.5306]
[1730098219257,9.10382378,174.26,174.21,9.10382378]
[1730098219562,9.10382378,174.27,174.21,9.10382378]
[1730098219890,5.7385,174.26,174.21,9.10382378]
[1730098221059,5.7385,174.26,174.22,9.10382378]
[1730098223050,14.84232378,174.26,174.21,9.10382378]
[1730098223364,14.84232378,174.26,174.16,34.9384]
[1730098223365,9.10382378,174.23,174.17,5.7415]
[1730098223566,9.10382378,174.22,174.17,20.0952]
[1730098223971,9.10382378,174.22,174.17,29.19902378]
[1730098224155,14.84372378,174.22,174.17,29.19902378]
[1730098224560,14.84372378,174.22,174.17,20.0952]
[1730098225448,5.7399,174.22,174.17,9.10382378]
[1730098225663,5.7399,174.22,174.19,9.10382378]
[1730098225971,5.7399,174.22,174.2,9.10382378]
[1730098226558,25.7392,174.24,174.19,9.10382378]
[1730098228165,34.84302378,174.24,174.19,9.10382378]
[1730098228466,34.84302378,174.24,174.18,14.84492378]
[1730098229871,9.10382378,174.23,174.18,14.84492378]
[1730098230176,14.84362378,174.23,174.18,14.84492378]
[1730098230853,9.10382378,174.22,174.18,5.7411]
[1730098233274,14.84362378,174.22,174.18,5.7411]
[1730098233577,20.0,174.24,174.18,29.19782378]
[1730098233780,9.10382378,174.23,174.18,20.094]
[1730098234785,9.10382378,174.21,174.15,23.45892378]
[1730098234978,9.10382378,174.21,174.15,14.3551]
[1730098235158,9.10382378,174.21,174.15,23.45892378]
[1730098235567,14.84412378,174.21,174.15,29.20102378]
[1730098236786,14.84412378,174.21,174.16,14.84542378]
[1730098238655,14.84412378,174.21,174.15,23.45892378]
[1730098238860,9.10382378,174.2,174.15,14.3551]
[1730098240185,14.84442378,174.2,174.15,14.3551]
[1730098243483,5.7395,174.23,174.17,9.10382378]
[1730098243685,5.7395,174.23,174.15,20.0972]
[1730098243686,5.7395,174.23,174.18,9.10382378]
[1730098243979,14.84202378,174.27,174.22,9.10382378]
[1730098244495,9.10382378,174.26,174.21,9.10382378]
[1730098244794,5.7388,174.25,174.21,9.10382378]
[1730098246372,5.7388,174.25,174.2,9.10382378]
[1730098247666,5.7388,174.25,174.2,14.84422378]
[1730098249190,5.7388,174.25,174.21,9.10382378]
[1730098253886,10.00692836,174.24,174.21,9.10382378]
[1730098254074,5.7392,174.24,174.21,9.10382378]
[1730098255077,25.7385,174.26,174.21,9.10382378]
[1730098255283,4.26835292,174.25,174.21,9.10382378]
[1730098255487,4.26835292,174.24,174.21,9.10382378]
[1730098255676,25.7385,174.26,174.21,9.10382378]
[1730098255870,4.26850624,174.25,174.23,9.10382378]
[1730098256083,25.7385,174.26,174.23,9.10382378]
[1730098256292,4.26897667,174.25,174.23,9.10382378]
[1730098256494,25.7385,174.26,174.23,9.10382378]
[1730098256805,4.26932517,174.25,174.23,9.10382378]
[1730098256979,25.7385,174.26,174.23,9.10382378]
[1730098257181,4.26933745,174.25,174.23,9.10382378]
[1730098257377,25.7385,174.26,174.23,9.10382378]
[1730098257572,4.26982392,174.25,174.23,9.10382378]
[1730098257785,25.7385,174.26,174.23,9.10382378]
[1730098258099,4.26982427,174.25,174.23,9.10382378]
[1730098258301,25.7385,174.26,174.23,9.10382378]
[1730098258487,4.27048873,174.25,174.23,9.10382378]
[1730098258686,25.7385,174.26,174.23,9.10382378]
[1730098259000,10.00948979,174.25,174.23,9.10382378]
[1730098259203,5.739,174.25,174.23,9.10382378]
[1730098259499,4.27168482,174.24,174.23,9.10382378]
[1730098259702,5.739,174.25,174.23,9.10382378]
[1730098259916,0.25098,174.3,174.24,9.10382378]
[1730098260097,11.10791795,174.29,174.27,9.10382378]
[1730098260289,11.10791795,174.28,174.27,9.10382378]
[1730098260689,4.27227613,174.28,174.26,9.10382378]
[1730098260906,4.27227613,174.27,174.25,9.10382378]
[1730098261109,5.7375,174.29,174.25,9.10382378]
[1730098261282,4.27334455,174.28,174.22,20.089]
[1730098261481,4.27334455,174.27,174.24,9.10382378]
[1730098261695,5.7375,174.29,174.25,9.10382378]
[1730098262005,4.27422571,174.28,174.25,9.10382378]
[1730098262320,4.27491186,174.27,174.25,9.10382378]
[1730098262491,5.7375,174.29,174.25,9.10382378]
[1730098262688,4.2749229,174.28,174.26,9.10382378]
[1730098262900,5.7375,174.29,174.26,9.10382378]
[1730098263088,5.7375,174.29,174.23,5.7395]
[1730098263089,4.27491155,174.28,174.27,9.10382378]
[1730098264797,4.27491155,174.28,174.26,9.10382378]
[1730098265008,4.27491155,174.27,174.26,9.10382378]
[1730098265312,4.27862184,174.28,174.26,9.10382378]
[1730098265608,4.27862184,174.27,174.26,9.10382378]
[1730098266313,5.7366,174.32,174.26,9.10382378]
[1730098266495,4.27847768,174.31,174.29,9.10382378]
[1730098266808,4.27847768,174.3,174.29,9.10382378]
[1730098266987,4.27847768,174.33,174.29,9.10382378]
[1730098267195,14.83972378,174.34,174.29,9.10382378]
[1730098267196,4.27847768,174.32,174.29,9.10382378]
[1730098267413,4.27847768,174.31,174.29,9.10382378]
[1730098267600,4.27847768,174.3,174.29,9.10382378]
[1730098267992,29.10382378,174.3,174.23,14.3485]
[1730098268194,4.27847768,174.29,174.24,9.10382378]
[1730098268497,4.27847768,174.28,174.25,9.10382378]
[1730098268684,4.27847768,174.27,174.25,9.10382378]
[1730098268888,29.10382378,174.3,174.25,9.10382378]
[1730098269193,10.01772896,174.29,174.25,9.10382378]
[1730098269512,4.27992896,174.28,174.25,9.10382378]
[1730098269809,4.27992896,174.27,174.25,9.10382378]
[1730098269988,5.7378,174.29,174.25,9.10382378]
[1730098270192,4.28169107,174.28,174.25,9.10382378]
[1730098270392,4.28169107,174.27,174.25,9.10382378]
[1730098270607,5.7378,174.29,174.25,9.10382378]
[1730098270809,4.28262692,174.28,174.25,9.10382378]
[1730098271112,5.7378,174.29,174.25,9.10382378]
[1730098271113,4.28262692,174.27,174.25,9.10382378]
[1730098271305,4.28262692,174.26,174.25,9.10382378]
[1730098271517,4.28262692,174.26,174.25,9.11790458]
[1730098271808,4.28262692,174.28,174.24,9.11790458]
[1730098272013,4.28262692,174.27,174.23,14.3485]
[1730098272191,4.28262692,174.26,174.23,14.3485]
[1730098272395,5.738,174.28,174.23,14.3485]
[1730098272587,4.28592831,174.27,174.23,14.3485]
[1730098272789,4.28592831,174.26,174.23,14.3485]
[1730098272987,5.7375,174.29,174.23,14.3485]
[1730098273215,4.2860559,174.28,174.23,14.3485]
[1730098273413,4.2860559,174.27,174.23,14.3485]
[1730098273710,4.2860559,174.26,174.23,14.3485]
[1730098273916,5.7375,174.29,174.23,14.3485]
[1730098274099,4.28731084,174.28,174.24,36.47161832]
[1730098274296,25.7359,174.34,174.27,9.11790458]
[1730098274504,4.28763444,174.33,174.31,9.11790458]
[1730098274809,4.28763444,174.32,174.31,9.11169538]
[1730098275009,4.28763444,174.32,174.3,9.11169538]
[1730098275213,4.28763444,174.31,174.3,9.11169538]
[1730098276692,4.28860577,174.31,174.3,9.11169538]
[1730098280204,4.28860577,174.31,174.3,14.84889538]
[1730098280518,4.28837594,174.31,174.3,29.19189538]
[1730098281898,5.7353,174.36,174.3,29.19189538]
[1730098282119,4.28747381,174.35,174.32,9.11169538]
[1730098282418,4.28747381,174.34,174.32,9.11169538]
[1730098282721,4.28747381,174.33,174.32,9.11169538]
[1730098284410,4.28494862,174.33,174.32,9.11169538]
[1730098291920,4.28119327,174.33,174.32,9.11169538]
[1730098294734,4.28119327,174.33,174.32,14.84819538]
[1730098295408,5.735,174.37,174.32,14.84819538]
[1730098296038,5.735,174.37,174.34,9.11169538]
[1730098296213,20.0,174.39,174.34,9.11169538]
[1730098296415,5.7347,174.38,174.35,9.11169538]
[1730098298131,4.28015267,174.37,174.35,9.11169538]
[1730098298435,4.28015267,174.36,174.35,9.11169538]
[1730098299829,4.28016683,174.36,174.35,9.11169538]
[1730098303641,5.7347,174.38,174.35,9.11169538]
[1730098303819,4.28162373,174.37,174.35,9.11169538]
[1730098304135,4.28162373,174.36,174.35,9.11169538]
[1730098307739,43.902374,174.4,174.35,9.11169538]
[1730098307922,4.28171802,174.39,174.35,9.11169538]
[1730098308122,4.28171802,174.38,174.35,9.11169538]
[1730098308426,4.28171802,174.37,174.35,9.11169538]
[1730098308631,4.28171802,174.36,174.34,5.7358]
[1730098308932,4.28171802,174.35,174.34,5.7358]
[1730098309649,49.636274,174.4,174.33,14.3406]
[1730098309975,4.28199251,174.39,174.36,9.11169538]
[1730098310140,4.28199251,174.38,174.37,9.11169538]
[1730098311933,4.28214697,174.38,174.37,9.11169538]
[1730098312245,23.776884,174.42,174.37,9.11169538]
[1730098312445,23.776884,174.42,174.38,9.11169538]
[1730098313837,23.776884,174.43,174.38,9.11169538]
[1730098314027,0.12549,174.42,174.38,9.11169538]
[1730098316345,5.7336,174.41,174.38,9.11169538]
[1730098318843,5.7336,174.41,174.34,5.7356]
[1730098319051,5.7336,174.41,174.37,9.11169538]
[1730098319353,5.7336,174.41,174.37,9.04471091]
[1730098319854,5.7336,174.41,174.38,9.11169538]
[1730098321033,5.7336,174.41,174.39,9.11169538]
[1730098321759,5.7336,174.41,174.4,9.11169538]
[1730098321966,5.7336,174.41,174.39,9.11169538]
[1730098322961,5.7336,174.41,174.38,9.11169538]
[1730098324354,5.7336,174.41,174.39,9.11169538]
[1730098325426,23.902374,174.44,174.4,9.11169538]
[1730098325753,10.4090463,174.47,174.43,9.11169538]
[1730098325754,5.7316,174.47,174.43,9.11169538]
[1730098325951,15.20579538,174.51,174.45,9.11169538]
[1730098327033,20.0,174.49,174.45,9.11169538]
[1730098328242,5.7313,174.48,174.45,9.11169538]
[1730098328444,20.0,174.47,174.45,9.11169538]
[1730098329455,20.0,174.47,174.44,9.11169538]
[1730098330446,21.4278,174.38,174.18,6.3588]
[1730098330640,0.12549,174.29,174.18,6.3588]
[1730098330872,23.902374,174.28,174.22,9.11169538]
[1730098331349,5.7382,174.27,174.22,9.11169538]
[1730098331548,5.7382,174.27,174.23,9.11169538]
[1730098332537,5.7382,174.27,174.22,9.11169538]
[1730098333855,0.12549,174.28,174.22,9.11169538]
[1730098334042,44.027864,174.3,174.24,9.11169538]
[1730098334249,44.027864,174.3,174.25,9.11169538]
[1730098334545,53.13955938,174.3,174.24,9.11169538]
[1730098334942,9.11169538,174.29,174.23,9.11169538]
[1730098335142,5.7378,174.28,174.23,9.11169538]
[1730098338861,14.84949538,174.28,174.23,9.11169538]
[1730098339657,14.84949538,174.28,174.22,9.11169538]
[1730098340364,9.11169538,174.27,174.22,9.11169538]
[1730098340564,9.11169538,174.24,174.18,12.0999]
[1730098340870,9.11169538,174.24,174.19,9.11169538]
[1730098341170,9.11169538,174.25,174.19,9.11169538]
[1730098341669,14.85089538,174.24,174.18,6.3588]
[1730098341879,14.85089538,174.24,174.19,9.11169538]
[1730098342254,14.85089538,174.24,174.18,9.11169538]
[1730098342572,9.11169538,174.23,174.18,9.11169538]
[1730098343862,5.7398,174.22,174.18,9.11169538]
[1730098345675,5.7398,174.22,174.17,9.11169538]
[1730098346375,9.11169538,174.21,174.14,6.45]
[1730098346555,5.7398,174.22,174.18,9.11169538]
[1730098346753,9.11169538,174.23,174.18,9.11169538]
[1730098347273,9.11169538,174.23,174.17,9.11169538]
[1730098347777,5.7398,174.22,174.17,9.11169538]
[1730098348980,9.11169538,174.22,174.16,5.7417]
[1730098349283,9.11169538,174.21,174.15,9.11169538]
[1730098350368,5.7405,174.2,174.15,9.11169538]
[1730098350666,5.7405,174.2,174.16,9.11169538]
[1730098351686,9.11169538,174.22,174.16,9.11169538]
[1730098351687,5.7401,174.21,174.16,9.11169538]
[1730098352064,5.7401,174.21,174.18,9.11169538]
[1730098352380,5.7401,174.21,174.17,9.11169538]
[1730098356184,5.7401,174.21,174.16,9.11169538]
[1730098357362,9.11169538,174.21,174.16,14.85339538]
[1730098358770,14.85209538,174.21,174.16,14.85339538]
[1730098359595,5.7404,174.21,174.17,9.11169538]
[1730098360772,9.11169538,174.22,174.17,14.85309538]
[1730098361281,9.11169538,174.22,174.17,9.11169538]
[1730098361785,14.85119538,174.23,174.17,14.85309538]
[1730098363287,14.85119538,174.23,174.14,6.45]
[1730098363584,9.11169538,174.22,174.17,9.11169538]
[1730098364674,14.85169538,174.22,174.17,14.85299538]
[1730098367186,9.11169538,174.23,174.17,14.85299538]
[1730098367396,9.11169538,174.24,174.18,9.11169538]
[1730098368182,9.11169538,174.24,174.19,9.11169538]
[1730098368483,14.85109538,174.24,174.19,14.85239538]
[1730098369077,33.01406938,174.23,174.14,6.45]
[1730098369284,33.01406938,174.23,174.18,9.11169538]
[1730098370395,5.7398,174.22,174.18,14.85279538]
[1730098371172,5.7397,174.23,174.18,14.85279538]
[1730098371368,5.7397,174.23,174.19,9.11169538]
[1730098372397,5.7397,174.23,174.19,14.85249538]
[1730098373704,5.7397,174.23,174.18,9.11169538]
[1730098374495,14.85139538,174.23,174.18,9.11169538]
[1730098375405,14.85139538,174.23,174.18,14.85269538]
[1730098376483,9.11169538,174.24,174.18,14.85269538]
[1730098378283,5.7395,174.23,174.18,14.85269538]
[1730098379177,5.7395,174.23,174.18,5.741]
[1730098379482,5.7395,174.23,174.18,9.11169538]
[1730098381398,5.7395,174.23,174.18,14.85259538]
[1730098387188,23.776884,174.26,174.21,9.11169538]
[1730098387389,0.12549,174.27,174.22,9.11169538]
[1730098387597,0.12549,174.27,174.23,9.11169538]
[1730098387989,5.7378,174.28,174.23,9.11169538]
[1730098388508,5.7378,174.28,174.24,9.11169538]
[1730098389213,5.7365,174.32,174.25,9.11169538]
[1730098389403,29.11169538,174.31,174.26,9.11169538]
[1730098389706,20.0,174.31,174.27,9.11169538]
[1730098390297,5.7372,174.3,174.27,9.11169538]
[1730098390602,5.7372,174.3,174.26,9.11169538]
[1730098394488,25.737,174.31,174.26,14.84999538]
[1730098395507,25.737,174.31,174.27,9.11169538]
[1730098407804,25.737,174.31,174.25,5.7388]
[1730098408121,25.737,174.31,174.27,9.11169538]
[1730098408819,25.737,174.31,174.28,9.11169538]
[1730098409326,5.7352,174.36,174.3,9.11169538]
[1730098409510,9.11169538,174.35,174.29,9.11169538]
[1730098410509,25.7359,174.34,174.29,9.11169538]
[1730098412201,9.11169538,174.3,174.24,25.55159538]
[1730098413321,9.11169538,174.3,174.24,31.29079538]
[1730098413616,5.7375,174.29,174.25,9.11169538]
[1730098415124,9.11169538,174.31,174.25,9.11169538]
[1730098415310,5.7372,174.3,174.25,9.11169538]
[1730098416012,5.7372,174.3,174.26,9.11169538]
[1730098421325,5.7372,174.3,174.25,14.85049538]
[1730098424523,5.7372,174.3,174.26,9.11169538]
[1730098426326,23.902374,174.33,174.26,9.11169538]
[1730098426530,53.01406938,174.31,174.26,9.11169538]
[1730098427607,5.7372,174.3,174.26,9.11169538]
[1730098430010,5.7372,174.3,174.25,14.85049538]
[1730098430330,14.84889538,174.3,174.25,9.11169538]
[1730098430636,9.11169538,174.29,174.24,5.7391]
[1730098431537,14.84949538,174.29,174.23,9.11169538]
[1730098431831,9.11169538,174.27,174.21,5.7401]
[1730098432006,9.11169538,174.28,174.22,9.11169538]
[1730098432435,4.29014593,174.27,174.22,9.11169538]
[1730098432622,9.11169538,174.28,174.22,9.11169538]
[1730098432827,4.29020513,174.27,174.22,9.11169538]
[1730098433134,4.29020513,174.26,174.23,5.7395]
[1730098433343,5.7382,174.27,174.23,5.7395]
[1730098433344,4.29020513,174.25,174.23,5.7395]
[1730098433637,4.29020513,174.24,174.23,5.7395]
[1730098435529,4.29020513,174.24,174.22,9.11169538]
[1730098435733,4.29131361,174.23,174.21,14.85179538]
[1730098435925,4.29131361,174.22,174.21,14.85179538]
[1730098440121,4.29325495,174.22,174.21,14.85179538]
[1730098440543,4.29325361,174.22,174.21,14.85179538]
[1730098446418,4.29863664,174.22,174.21,14.85179538]
[1730098448433,5.7385,174.26,174.21,14.85179538]
[1730098448632,5.7385,174.26,174.22,14.85149538]
[1730098448834,5.7385,174.26,174.23,9.11169538]
[1730098449246,5.7375,174.29,174.24,9.11169538]
[1730098450328,5.7375,174.29,174.25,9.11169538]
[1730098450524,25.7372,174.3,174.25,9.11169538]
[1730098451845,5.7372,174.3,174.27,9.11169538]
[1730098454748,23.902374,174.31,174.27,9.11169538]
[1730098454930,5.7365,174.32,174.28,9.11169538]
[1730098456250,49.764064,174.33,174.28,9.11169538]